fUSD/lending_fUSD_20250502
["ID","MTS","AMOUNT","RATE_DAILY","PERIOD"]
[359652837,1746221440685,-200.0,0.00019714,2]
[359652838,1746221440694,-450.0,0.00019714,2]
[359652839,1746221440703,-450.0,0.00019714,2]
[359652840,1746221440712,-250.0,0.00019714,2]
[359652841,1746221440721,-450.0,0.00019714,2]
[359652842,1746221440730,-450.0,0.00019714,2]
[359652843,1746221440739,-450.0,0.00019714,2]
[359652844,1746221440748,-450.0,0.00019714,2]
[359652845,1746221440758,-450.0,0.00019714,2]
[359652846,1746221440767,-450.0,0.00019714,2]
[359652847,1746221440776,-450.0,0.00019714,2]
[359652848,1746221440785,-450.0,0.00019714,2]
[359652849,1746221440794,-450.0,0.00019714,2]
[359652850,1746221440804,-450.0,0.00019714,2]
[359652851,1746221440815,-450.0,0.00019714,2]
[359652852,1746221440825,-450.0,0.00019714,2]
[359652853,1746221440834,-450.0,0.00019714,2]
[359652854,1746221440843,-450.0,0.00019714,2]
[359652855,1746221440852,-450.0,0.00019714,2]
[359652856,1746221440862,-450.0,0.00019714,2]
[359652857,1746221440871,-450.0,0.00019714,2]
[359652858,1746221440880,-450.0,0.00019714,2]
[359652859,1746221440890,-450.0,0.00019714,2]
[359652860,1746221440899,-450.0,0.00019714,2]
[359652861,1746221440908,-450.0,0.00019714,2]
[359652862,1746221440917,-450.0,0.00019714,2]
[359652863,1746221440927,-596.09,0.00019714,2]
[359652864,1746221440937,-507.38,0.00019714,2]
[359652865,1746221440947,-450.0,0.00019714,2]
[359652866,1746221440957,-450.0,0.00019714,2]
[359652867,1746221440966,-450.0,0.00019714,2]
[359652868,1746221440975,-450.0,0.00019714,2]
[359652869,1746221440984,-450.0,0.00019714,2]
[359652870,1746221440993,-450.0,0.00019714,2]
[359652871,1746221441002,-450.0,0.00019714,2]
[359652872,1746221441012,-450.0,0.00019714,2]
[359652873,1746221441021,-450.0,0.00019714,2]
[359652874,1746221441030,-450.0,0.00019714,2]
[359652875,1746221441039,-450.0,0.00019714,2]
[359652876,1746221441047,-450.0,0.00019714,2]
[359652877,1746221441056,-450.0,0.00019714,2]
[359652878,1746221441066,-188.84194376,0.00019714,2]
[359652879,1746221441077,-450.0,0.00019714,2]
[359652880,1746221441086,-842.39,0.00019714,2]
[359652881,1746221441096,-450.0,0.00019714,2]
[359652882,1746221441105,-450.0,0.00019714,2]
[359652883,1746221441114,-450.0,0.00019714,2]
[359652884,1746221441126,-450.0,0.00019714,2]
[359652885,1746221441135,-632.66,0.00019714,2]
[359652886,1746221441144,-450.0,0.00019714,2]
[359652887,1746221441153,-452.42,0.00019714,2]
[359652888,1746221441163,-450.0,0.00019714,2]
[359652889,1746221441172,-450.0,0.00019714,2]
[359652890,1746221441181,-450.0,0.00019714,2]
[359652891,1746221441191,-450.0,0.00019714,2]
[359652892,1746221441200,-450.0,0.00019714,2]
[359652893,1746221441209,-450.0,0.00019714,2]
[359652894,1746221441219,-450.0,0.00019714,2]
[359652895,1746221441228,-450.0,0.00019714,2]
[359652896,1746221441239,-450.0,0.00019714,2]
[359652897,1746221441249,-450.0,0.00019714,2]
[359652898,1746221441260,-450.0,0.00019714,2]
[359652899,1746221441269,-450.0,0.00019714,2]
[359652900,1746221441279,-450.0,0.00019714,2]
[359652901,1746221441288,-646.47,0.00019714,2]
[359652902,1746221441298,-450.0,0.00019714,2]
[359652903,1746221441307,-450.0,0.00019714,2]
[359652904,1746221441317,-450.0,0.00019714,2]
[359652905,1746221441326,-450.0,0.00019714,2]
[359652906,1746221441335,-453.05,0.00019714,2]
[359652907,1746221441345,-450.0,0.00019714,2]
[359652908,1746221441355,-450.0,0.00019714,2]
[359652909,1746221441364,-450.0,0.00019714,2]
[359652910,1746221441374,-450.0,0.00019714,2]
[359652911,1746221441383,-450.0,0.00019714,2]
[359652912,1746221441392,-450.0,0.00019714,2]
[359652913,1746221441402,-450.0,0.00019714,2]
[359652914,1746221441411,-450.0,0.00019714,2]
[359652915,1746221441420,-450.0,0.00019714,2]
[359652916,1746221441429,-450.0,0.00019714,2]
[359652917,1746221441439,-450.0,0.00019714,2]
[359652918,1746221441448,-451.89,0.00019714,2]
[359652919,1746221441458,-450.0,0.00019714,2]
[359652920,1746221441467,-450.0,0.00019714,2]
[359652921,1746221441476,-450.0,0.00019714,2]
[359652922,1746221441486,-450.0,0.00019714,2]
[359652923,1746221441495,-493.39,0.00019714,2]
[359652924,1746221441505,-450.0,0.00019714,2]
[359652925,1746221441518,-450.0,0.00019714,2]
[359652926,1746221441528,-450.0,0.00019714,2]
[359652927,1746221441537,-450.0,0.00019714,2]
[359652928,1746221441547,-450.0,0.00019714,2]
[359652929,1746221441556,-450.0,0.00019714,2]
[359652930,1746221441565,-450.0,0.00019714,2]
[359652931,1746221441578,-450.0,0.00019714,2]
[359652932,1746221441588,-450.0,0.00019714,2]
[359652933,1746221441598,-450.0,0.00019714,2]
[359652934,1746221441608,-450.0,0.00019714,2]
[359652935,1746221441617,-450.0,0.00019714,2]
[359652936,1746221441627,-557.8,0.00019714,2]
[359652937,1746221441637,-450.0,0.00019714,2]
[359652938,1746221441646,-450.0,0.00019714,2]
[359652939,1746221441655,-450.0,0.00019714,2]
[359652940,1746221441665,-450.0,0.00019714,2]
[359652941,1746221441674,-450.0,0.00019714,2]
[359652942,1746221441683,-450.0,0.00019714,2]
[359652943,1746221441692,-450.0,0.00019714,2]
[359652944,1746221441701,-584.94,0.00019714,2]
[359652945,1746221441710,-450.0,0.00019714,2]
[359652946,1746221441719,-450.0,0.00019714,2]
[359652947,1746221441729,-450.0,0.00019714,2]
[359652948,1746221441738,-755.07,0.00019714,2]
[359652949,1746221441747,-450.0,0.00019714,2]
[359652950,1746221441756,-450.0,0.00019714,2]
[359652951,1746221441766,-450.0,0.00019714,2]
[359652952,1746221441775,-819.7,0.00019714,2]
[359652953,1746221441787,-450.0,0.00019714,2]
[359652954,1746221441796,-450.0,0.00019714,2]
[359652955,1746221441806,-503.43,0.00019714,2]
[359652956,1746221441815,-450.0,0.00019714,2]
[359652957,1746221441824,-3649.13,0.00019714,2]
[359652958,1746221441834,-450.0,0.00019714,2]
[359652959,1746221441843,-450.0,0.00019714,2]
[359652960,1746221441853,-450.0,0.00019714,2]
[359652961,1746221441863,-4343.29,0.00019714,2]
[359652962,1746221441873,-450.0,0.00019714,2]
[359652963,1746221441882,-450.0,0.00019714,2]
[359652964,1746221441891,-450.0,0.00019714,2]
[359652965,1746221441901,-4038.4,0.00019714,2]
[359652966,1746221441910,-687.86,0.00019714,2]
[359652967,1746221441920,-450.0,0.00019714,2]
[359652968,1746221441929,-450.0,0.00019714,2]
[359652969,1746221441938,-467.03,0.00019714,2]
[359652970,1746221441947,-763.03,0.00019714,2]
[359652971,1746221441956,-450.0,0.00019714,2]
[359652972,1746221441966,-450.0,0.00019714,2]
[359652973,1746221441975,-450.0,0.00019714,2]
[359652974,1746221441984,-500.86,0.00019714,2]
[359652975,1746221441994,-450.0,0.00019714,2]
[359652976,1746221442003,-471.86,0.00019714,2]
[359652977,1746221442013,-450.0,0.00019714,2]
[359652978,1746221442023,-554.65,0.00019714,2]
[359652979,1746221442032,-451.24,0.00019714,2]
[359652980,1746221442042,-450.0,0.00019714,2]
[359652981,1746221442051,-450.0,0.00019714,2]
[359652982,1746221442061,-450.0,0.00019714,2]
[359652983,1746221442071,-562.73,0.00019714,2]
[359652984,1746221442080,-4340.68,0.00019714,2]
[359652985,1746221442090,-450.0,0.00019714,2]
[359652986,1746221442101,-910.11,0.00019714,2]
[359652987,1746221442110,-88160.41,0.00019714,2]
[359652988,1746221442119,-450.0,0.00019714,2]
[359652989,1746221442129,-917.83,0.00019714,2]
[359652990,1746221442139,-450.0,0.00019714,2]
[359652991,1746221442148,-450.0,0.00019714,2]
[359652992,1746221442158,-450.0,0.00019714,2]
[359652993,1746221442167,-450.0,0.00019714,2]
[359652994,1746221442176,-5831.67,0.00019714,2]
[359652995,1746221442186,-450.0,0.00019714,2]
[359652996,1746221442196,-5173.57,0.00019714,2]
[359652997,1746221442205,-928.73,0.00019714,2]
[359652998,1746221442215,-1007.18,0.00019714,2]
[359652999,1746221442230,-450.0,0.00019714,2]
[359653000,1746221442240,-450.0,0.00019714,2]
[359653001,1746221442249,-28579.82,0.00019714,2]
[359653002,1746221442259,-450.0,0.00019714,2]
[359653003,1746221442268,-450.0,0.00019714,2]
[359653004,1746221442277,-450.0,0.00019714,2]
[359653005,1746221442286,-450.0,0.00019714,2]
[359653006,1746221442295,-450.0,0.00019714,2]
[359653007,1746221442304,-450.0,0.00019714,2]
[359653008,1746221442313,-450.0,0.00019714,2]
[359653009,1746221442323,-450.0,0.00019714,2]
[359653010,1746221442333,-1872.63,0.00019714,2]
[359653011,1746221442343,-300.0,0.00019714,2]
[359653012,1746221442354,-450.0,0.00019714,2]
[359653013,1746221442363,-507.58,0.00019714,2]
[359653014,1746221442372,-450.0,0.00019714,2]
[359653015,1746221442382,-450.0,0.00019714,2]
[359653016,1746221442391,-450.0,0.00019714,2]
[359653017,1746221442400,-15957.14,0.00019714,2]
[359653018,1746221442410,-450.0,0.00019714,2]
[359653019,1746221442419,-502.21,0.00019714,2]
[359653020,1746221442429,-450.0,0.00019714,2]
[359653021,1746221442439,-463.09,0.00019714,2]
[359653022,1746221442448,-469.9,0.00019714,2]
[359653023,1746221442458,-574.95,0.00019714,2]
[359653024,1746221442467,-668.07,0.00019714,2]
[359653025,1746221442477,-450.0,0.00019714,2]
[359653026,1746221442487,-542.14,0.00019714,2]
[359653027,1746221442496,-609.43,0.00019714,2]
[359653028,1746221442506,-450.0,0.00019714,2]
[359653029,1746221442517,-875.58,0.00019714,2]
[359653030,1746221442526,-450.0,0.00019714,2]
[359653031,1746221442536,-450.0,0.00019714,2]
[359653032,1746221442545,-109570.61,0.00019714,2]
[359653033,1746221442555,-2283.05,0.00019714,2]
[359653034,1746221442564,-450.0,0.00019714,2]
[359653035,1746221442575,-450.0,0.00019714,2]
[359653036,1746221442585,-450.0,0.00019714,2]
[359653037,1746221442595,-450.0,0.00019714,2]
[359653038,1746221442605,-1237.58,0.00019714,2]
[359653039,1746221442615,-555.36,0.00019714,2]
[359653040,1746221442625,-450.0,0.00019714,2]
[359653041,1746221442635,-450.0,0.00019714,2]
[359653042,1746221442644,-450.0,0.00019714,2]
[359653043,1746221442654,-450.0,0.00019714,2]
[359653044,1746221442663,-450.0,0.00019714,2]
[359653045,1746221442672,-495.4,0.00019714,2]
[359653046,1746221442683,-529.29,0.00019714,2]
[359653047,1746221442692,-450.0,0.00019714,2]
[359653048,1746221442701,-450.0,0.00019714,2]
[359653049,1746221442711,-625.67874033,0.00019714,2]
[359653050,1746221442720,-450.0,0.00019714,2]
[359653051,1746221442729,-450.0,0.00019714,2]
[359653052,1746221442739,-450.0,0.00019714,2]
[359653054,1746221442748,-450.0,0.00019714,2]
[359653055,1746221442758,-450.0,0.00019714,2]
[359653056,1746221442767,-450.0,0.00019714,2]
[359653057,1746221442777,-450.0,0.00019714,2]
[359653058,1746221442786,-450.0,0.00019714,2]
[359653059,1746221442796,-450.0,0.00019714,2]
[359653060,1746221442805,-450.0,0.00019714,2]
[359653061,1746221442814,-1816.16,0.00019714,2]
[359653062,1746221442823,-450.0,0.00019714,2]
[359653063,1746221442832,-2651.26,0.00019714,2]
[359653064,1746221442841,-450.0,0.00019714,2]
[359653065,1746221442851,-566.64,0.00019714,2]
[359653066,1746221442860,-450.0,0.00019714,2]
[359653067,1746221442869,-450.0,0.00019714,2]
[359653068,1746221442878,-533.4,0.00019714,2]
[359653069,1746221442888,-450.0,0.00019714,2]
[359653070,1746221442897,-450.0,0.00019714,2]
[359653071,1746221442907,-450.0,0.00019714,2]
[359653072,1746221442916,-450.0,0.00019714,2]
[359653073,1746221442925,-482.66,0.00019714,2]
[359653074,1746221442939,-450.0,0.00019714,2]
[359653075,1746221442949,-709.96,0.00019714,2]
[359653076,1746221442958,-521.65,0.00019714,2]
[359653077,1746221442967,-402.27436238,0.00019714,2]
[359653078,1746221442977,-450.0,0.00019714,2]
[359653079,1746221442986,-1102.77,0.00019714,2]
[359653080,1746221442995,-450.0,0.00019714,2]
[359653081,1746221443005,-1628.89,0.00019714,2]
[359653082,1746221443015,-450.0,0.00019714,2]
[359653083,1746221443024,-1507.88,0.00019714,2]
[359653084,1746221443193,-3244.96,0.00019714,2]
[359653085,1746221443205,-450.0,0.00019714,2]
[359653086,1746221443215,-450.0,0.00019714,2]
[359653087,1746221443225,-450.0,0.00019714,2]
[359653088,1746221443234,-544.22,0.00019714,2]
[359653089,1746221443244,-450.0,0.00019714,2]
[359653091,1746221443254,-450.0,0.00019714,2]
[359653093,1746221443263,-501.53,0.00019714,2]
[359653094,1746221443272,-450.0,0.00019714,2]
[359653096,1746221443282,-916.0,0.00019714,2]
[359653098,1746221443292,-457.34,0.00019714,2]
[359653099,1746221443301,-450.0,0.00019714,2]
[359653100,1746221443311,-794.99,0.00019714,2]
[359653101,1746221443320,-450.0,0.00019714,2]
[359653102,1746221443331,-450.0,0.00019714,2]
[359653103,1746221443340,-947.47,0.00019714,2]
[359653104,1746221443350,-450.0,0.00019714,2]
[359653105,1746221443360,-566.55,0.00019714,2]
[359653106,1746221443369,-450.0,0.00019714,2]
[359653107,1746221443378,-450.0,0.00019714,2]
[359653108,1746221443388,-450.0,0.00019714,2]
[359653109,1746221443398,-450.0,0.00019714,2]
[359653110,1746221443407,-200.0,0.00019715,2]
[359653111,1746221443417,-200.0,0.00019715,2]
[359653112,1746221443427,-450.0,0.00019715,2]
[359653113,1746221443436,-450.0,0.00019715,2]
[359653114,1746221443446,-520.05,0.00019715,2]
[359653115,1746221443456,-450.0,0.00019715,2]
[359653116,1746221443465,-450.0,0.00019715,2]
[359653117,1746221443476,-633.87,0.00019715,2]
[359653118,1746221443486,-450.0,0.00019715,2]
[359653119,1746221443496,-482.35312224,0.00019715,2]
[359653120,1746221443506,-450.0,0.00019715,2]
[359653121,1746221443519,-450.0,0.00019715,2]
[359653122,1746221443528,-713.56,0.00019715,2]
[359653123,1746221443538,-450.0,0.00019715,2]
[359653124,1746221443548,-509.45,0.00019715,2]
[359653125,1746221443558,-450.0,0.00019715,2]
[359653126,1746221443568,-521.13,0.00019715,2]
[359653127,1746221443577,-450.0,0.00019715,2]
[359653128,1746221443587,-450.0,0.00019715,2]
[359653129,1746221443597,-450.0,0.00019715,2]
[359653130,1746221443608,-606.55,0.00019715,2]
[359653131,1746221443617,-450.0,0.00019715,2]
[359653132,1746221443627,-170.87322706,0.00019715,2]
[359653133,1746221443637,-450.0,0.00019715,2]
[359653134,1746221443647,-320.94152436,0.00019715,2]
[359653135,1746221443657,-1082.66,0.00019715,2]
[359653136,1746221443667,-450.0,0.00019715,2]
[359653137,1746221443676,-450.0,0.00019715,2]
[359653138,1746221443687,-450.0,0.00019715,2]
[359653139,1746221443696,-578.0,0.00019715,2]
[359653140,1746221443706,-450.0,0.00019715,2]
[359653141,1746221443716,-590.76,0.00019715,2]
[359653142,1746221443725,-450.0,0.00019715,2]
[359653143,1746221443735,-1484.77,0.00019715,2]
[359653144,1746221443745,-450.0,0.00019715,2]
[359653145,1746221443754,-450.0,0.00019715,2]
[359653146,1746221443764,-732.95,0.00019715,2]
[359653147,1746221443775,-567.25,0.00019715,2]
[359653148,1746221443784,-450.0,0.00019715,2]
[359653149,1746221443793,-450.0,0.00019715,2]
[359653150,1746221443803,-518.88,0.00019715,2]
[359653151,1746221443812,-450.0,0.00019715,2]
[359653152,1746221443822,-568.08,0.00019715,2]
[359653153,1746221443832,-450.0,0.00019715,2]
[359653154,1746221443841,-718.18,0.00019715,2]
[359653155,1746221443851,-450.0,0.00019715,2]
[359653156,1746221443860,-726.93,0.00019715,2]
[359653157,1746221443869,-450.0,0.00019715,2]
[359653158,1746221443879,-717.61,0.00019715,2]
[359653159,1746221443889,-601.63,0.00019715,2]
[359653160,1746221443898,-450.0,0.00019715,2]
[359653161,1746221443908,-1753.04,0.00019715,2]
[359653162,1746221443917,-641.65,0.00019715,2]
[359653163,1746221443927,-601.85,0.00019715,2]
[359653164,1746221443936,-450.0,0.00019715,2]
[359653165,1746221443946,-1133.79,0.00019715,2]
[359653166,1746221443956,-450.0,0.00019715,2]
[359653167,1746221443965,-776.94,0.00019715,2]
[359653168,1746221443975,-450.0,0.00019715,2]
[359653169,1746221443984,-450.0,0.00019715,2]
[359653170,1746221443994,-450.0,0.00019715,2]
[359653171,1746221444004,-520.06,0.00019715,2]
[359653172,1746221444014,-450.0,0.00019715,2]
[359653173,1746221444024,-450.0,0.00019715,2]
[359653174,1746221444033,-481.61,0.00019715,2]
[359653175,1746221444043,-929.38,0.00019715,2]
[359653176,1746221444052,-450.0,0.00019715,2]
[359653177,1746221444062,-450.0,0.00019715,2]
[359653178,1746221444071,-1170.23,0.00019715,2]
[359653179,1746221444080,-588.03,0.00019715,2]
[359653180,1746221444090,-477.02,0.00019715,2]
[359653181,1746221444099,-566.26,0.00019715,2]
[359653182,1746221444109,-1414.03,0.00019715,2]
[359653183,1746221444118,-450.0,0.00019715,2]
[359653184,1746221444127,-636.03,0.00019715,2]
[359653185,1746221444137,-450.0,0.00019715,2]
[359653186,1746221444146,-450.0,0.00019715,2]
[359653187,1746221444156,-912.95,0.00019715,2]
[359653188,1746221444165,-450.0,0.00019715,2]
[359653189,1746221444175,-764.13,0.00019715,2]
[359653190,1746221444186,-450.0,0.00019715,2]
[359653191,1746221444195,-450.0,0.00019715,2]
[359653192,1746221444205,-450.0,0.00019715,2]
[359653194,1746221444214,-500.0,0.00019715,2]
[359653195,1746221444223,-450.0,0.00019715,2]
[359653196,1746221444233,-725.21,0.00019715,2]
[359653197,1746221444242,-450.0,0.00019715,2]
[359653198,1746221444251,-450.0,0.00019715,2]
[359653199,1746221444260,-2414.23,0.00019715,2]
[359653200,1746221444270,-716.79,0.00019715,2]
[359653201,1746221444279,-1056.06,0.00019715,2]
[359653202,1746221444288,-575.39,0.00019715,2]
[359653203,1746221444298,-2201.55,0.00019715,2]
[359653204,1746221444307,-450.0,0.00019716,2]
[359653205,1746221444316,-450.0,0.00019716,2]
[359653206,1746221444326,-450.0,0.00019716,2]
[359653207,1746221444335,-450.0,0.00019716,2]
[359653208,1746221444344,-450.0,0.00019716,2]
[359653209,1746221444354,-150.97981124,0.00019721,2]
[359653210,1746221444363,-500.0,0.00019721,2]
[359653211,1746221444373,-150.0,0.00019721,2]
[359653212,1746221444383,-500.0,0.00019721,2]
[359653213,1746221444392,-150.38905316,0.00019721,2]
[359653214,1746221444402,-500.0,0.00019721,2]
[359653215,1746221444411,-500.0,0.00019721,2]
[359653216,1746221444421,-441.0,0.00019721,2]
[359653217,1746221444431,-500.0,0.00019721,2]
[359653218,1746221444440,-500.0,0.00019721,2]
[359653219,1746221444450,-500.0,0.00019721,2]
[359653220,1746221444461,-500.0,0.00019721,2]
[359653221,1746221444470,-500.0,0.00019721,2]
[359653222,1746221444480,-155.27013893,0.00019721,2]
[359653223,1746221444489,-500.0,0.00019721,2]
[359653224,1746221444499,-151.09399251,0.00019721,2]
[359653225,1746221444510,-150.96083992,0.00019721,2]
[359653226,1746221444522,-150.0,0.00019721,2]
[359653227,1746221444531,-150.0,0.00019721,2]
[359653228,1746221444541,-500.0,0.00019721,2]
[359653229,1746221444551,-154.54925283,0.00019721,2]
[359653230,1746221444561,-500.0,0.00019721,2]
[359653231,1746221444571,-150.0,0.00019721,2]
[359653232,1746221444581,-500.0,0.00019721,2]
[359653233,1746221444591,-1121.56976756,0.00019741,2]
[359653234,1746221444601,-4193.5552051,0.00019742,2]
[359653235,1746221444611,-42333.55907963,0.0001975,2]
[359653236,1746221444621,-155.96257902,0.00019765,2]
[359653237,1746221444630,-505.12152298,0.00019773,2]
[359653238,1746221444640,-500.0,0.00019773,2]
[359653239,1746221444650,-368.87036061,0.00019773,2]
[359653240,1746221444660,-165.99958587,0.00019773,2]
[359653241,1746221444669,-500.0,0.00019773,2]
[359653242,1746221444679,-500.0,0.00019773,2]
[359653243,1746221444689,-500.0,0.00019773,2]
[359653244,1746221444698,-515.34803,0.00019773,2]
[359653245,1746221444707,-500.0,0.00019773,2]
[359653246,1746221444716,-500.0,0.00019773,2]
[359653247,1746221444726,-500.0,0.00019773,2]
[359653248,1746221444735,-500.0,0.00019773,2]
[359653249,1746221444744,-500.0,0.00019773,2]
[359653250,1746221444753,-1121.56976756,0.00019773,2]
[359653251,1746221444763,-4193.5552051,0.00019773,2]
[359653253,1746221444772,-992.8407002,0.00019799,2]
[359653255,1746221444782,-1121.56976756,0.00019805,2]
[359653256,1746221444791,-4193.5552051,0.00019805,2]
[359653257,1746221444800,-12500.0,0.00019812,2]
[359653258,1746221444809,-12500.0,0.00019821,2]
[359653259,1746221444819,-12500.0,0.0001983,2]
[359653260,1746221444828,-1121.56976756,0.00019836,2]
[359653261,1746221444838,-4193.5552051,0.00019837,2]
[359653262,1746221444847,-12500.0,0.00019838,2]
[359653263,1746221444856,-2000.0,0.00019839,2]
[359653264,1746221444866,-200.0,0.00019839,2]
[359653265,1746221444875,-500.0,0.0001984,2]
[359653266,1746221444884,-2000.0,0.0001984,2]
[359653267,1746221444894,-2000.0,0.0001984,2]
[359653268,1746221444903,-200.0,0.0001984,2]
[359653269,1746221444912,-12500.0,0.00019847,2]
[359653270,1746221444922,-153.0,0.00019849,2]
[359653271,1746221444932,-12500.0,0.00019856,2]
[359653272,1746221444942,-151.0,0.00019864,2]
[359653273,1746221444951,-12500.0,0.00019865,2]
[359653274,1746221444961,-12500.0,0.00019865,2]
[359653275,1746221444970,-151.0,0.00019866,2]
[359653276,1746221444979,-151.0,0.00019866,2]
[359653277,1746221444990,-151.0,0.00019867,2]
[359653278,1746221445001,-151.0,0.00019867,2]
[359653279,1746221445010,-1121.56976756,0.00019868,2]
[359653280,1746221445022,-4193.5552051,0.00019868,2]
[359653281,1746221445032,-12500.0,0.00019874,2]
[359653282,1746221445041,-12500.0,0.00019874,2]
[359653283,1746221445051,-12500.0,0.00019882,2]
[359653284,1746221445060,-12500.0,0.00019882,2]
[359653285,1746221445070,-3251.41085204,0.00019889,2]
[359653286,1746221445079,-233.19087666,0.00019889,2]
[359653287,1746221445089,-165.7836071,0.00019889,2]
[359653288,1746221445098,-12500.0,0.00019891,2]
[359653289,1746221445108,-12500.0,0.00019891,2]
[359653290,1746221445118,-165.78360708,0.00019893,2]
[359653291,1746221445127,-165.78360708,0.00019896,2]
[359653292,1746221445137,-593.72698697,0.000199,2]
[359653293,1746221445147,-2743.91594593,0.000199,2]
[359653294,1746221445157,-12500.0,0.000199,2]
[359653295,1746221445167,-182.45137215,0.000199,2]
[359653296,1746221445176,-165.78360708,0.000199,2]
[359653297,1746221445187,-12500.0,0.000199,2]
[359653298,1746221445196,-28559.79043473,0.000199,2]
[359653299,1746221445206,-165.23990396,0.000199,2]
[359653300,1746221445216,-3014.72115016,0.000199,3]
[359653301,1746221445225,-4193.5552051,0.000199,2]
[359653302,1746221445235,-1121.56976756,0.000199,2]
[359653303,1746221445244,-161.07157221,0.000199,2]
[359653304,1746221445254,-1310.89372494,0.000199,2]
[359653305,1746221445263,-46621.37200263,0.000199,2]
[359653306,1746221445272,-180.12891608,0.000199,3]
[359653307,1746221445282,-507.0,0.00019918,2]
[359653308,1746221445292,-151.0,0.00019943,2]
[359653309,1746221445301,-3104.202,0.00019949,2]
[359653310,1746221445310,-206.4,0.00019949,2]
[359653311,1746221445320,-1449.0,0.00019949,2]
[359653312,1746221445329,-581.0,0.00019949,2]
[359653313,1746221445339,-914.0,0.00019949,2]
[359653314,1746221445348,-550.0,0.00019949,2]
[359653315,1746221445357,-2071.0,0.00019949,2]
[359653316,1746221445367,-924.0,0.00019949,2]
[359653317,1746221445377,-1391.397,0.00019949,2]
[359653318,1746221445386,-4006.0,0.00019949,2]
[359653319,1746221445395,-207.4,0.00019953,2]
[359653320,1746221445404,-151.0,0.00019954,2]
[359653321,1746221445414,-151.0,0.00019954,2]
[359653322,1746221445423,-151.0,0.00019954,2]
[359653323,1746221445432,-668.65185757,0.00019954,2]
[359653324,1746221445442,-514.0,0.0001997,2]
[359653325,1746221445451,-500.0,0.00019973,2]
[359653326,1746221445719,-162.40954813,0.00019973,2]
[359653327,1746221445734,-501.47327578,0.00019973,2]
[359653328,1746221445744,-920.0,0.00019973,2]
[359653329,1746221445753,-24257.0,0.00019973,2]
[359653330,1746221445763,-501.66333751,0.00019973,2]
[359653331,1746221445772,-500.0,0.00019973,2]
[359653332,1746221445781,-500.0,0.00019973,2]
[359653333,1746221445791,-500.0,0.00019973,2]
[359653334,1746221445800,-152.56461415,0.00019973,2]
[359653335,1746221445810,-302.52572163,0.00019973,2]
[359653336,1746221445820,-500.0,0.00019973,2]
[359653337,1746221445829,-517.08214642,0.00019973,2]
[359653338,1746221445838,-500.0,0.00019973,2]
[359653339,1746221445848,-160.1305096,0.00019973,2]
[359653340,1746221445857,-500.0,0.00019973,2]
[359653341,1746221445867,-1074.92705239,0.00019978,2]
[359653342,1746221445876,-36943.72609916,0.0001998,2]
[359653343,1746221445886,-12462.5042298,0.00019986,2]
[359653344,1746221445896,-450.0,0.00019987,2]